bitfinex-derivatives/quotes_ETHF0:USTF0_20241023
["timestamp","ask_amount","ask_price","bid_price","bid_amount"]
[1729725412999,1.82705,2520.7,2520.6,0.39706]
[1729725413910,1.43,2520.7,2520.6,0.39706]
[1729725414508,1.82705,2520.7,2520.6,0.39706]
[1729725419515,1.43,2520.7,2520.4,0.4132]
[1729725419810,4.075,2520.8,2520.4,0.4132]
[1729725419811,0.84567,2520.6,2520.5,0.39707]
[1729725420010,0.4486,2520.6,2520.5,0.39707]
[1729725420917,0.84566,2520.6,2520.5,0.39707]
[1729725421318,2.27566,2520.6,2520.5,0.39707]
[1729725421513,1.8786,2520.6,2520.5,0.39707]
[1729725421915,3.2078,2520.8,2520.7,0.39705]
[1729725422215,3.2078,2521.1,2521.0,0.397]
[1729725422517,7.39419534,2521.1,2521.0,0.397]
[1729725422713,8.82419534,2521.1,2521.0,0.397]
[1729725423819,5.61639534,2521.1,2521.0,0.397]
[1729725424519,1.43,2521.1,2521.0,0.397]
[1729725432827,3.2078,2521.4,2521.3,0.39695]
[1729725433035,4.6378,2521.4,2521.3,0.39695]
[1729725433219,4.6378,2521.4,2521.3,1.82695]
[1729725434628,3.2078,2521.7,2521.6,0.39691]
[1729725434818,3.2078,2521.7,2521.6,1.82691]
[1729725435423,4.6378,2521.7,2521.6,0.39691]
[1729725436225,0.39691,2521.6,2521.4,0.39692]
[1729725436421,1.43,2521.5,2521.3,0.39695]
[1729725436630,1.43,2521.4,2521.3,0.39695]
[1729725436832,1.872,2521.4,2521.3,0.39695]
[1729725437732,5.0798,2521.4,2521.3,0.39695]
[1729725438335,3.2078,2521.4,2521.3,1.82695]
[1729725438530,0.81151,2521.6,2521.4,0.39693]
[1729725438732,0.81151,2521.6,2521.5,1.43]
[1729725439241,6.66174347,2521.6,2521.5,1.43]
[1729725439737,6.66174347,2521.6,2521.5,1.8447]
[1729725440736,6.66174347,2521.6,2521.5,0.4147]
[1729725442635,6.66174347,2521.6,2521.5,1.8447]
[1729725446548,5.23174347,2521.6,2521.5,1.8447]
[1729725446842,6.66174347,2521.6,2521.5,1.8447]
[1729725447346,5.47058,2521.8,2521.7,0.39689]
[1729725447553,5.53934458,2521.8,2521.7,0.39689]
[1729725448043,5.53934443,2521.8,2521.7,0.39689]
[1729725448431,5.53934443,2521.8,2521.7,1.43]
[1729725449244,5.53934443,2521.8,2521.7,1.82689]
[1729725449743,5.53934443,2521.8,2521.7,1.43]
[1729725450340,3.27656443,2521.8,2521.7,1.43]
[1729725450546,4.70656443,2521.8,2521.7,1.82689]
[1729725451836,3.27656443,2521.8,2521.7,1.82689]
[1729725452041,3.34532362,2521.8,2521.7,1.82689]
[1729725452547,3.27656181,2521.8,2521.7,1.82689]
[1729725452746,3.34532365,2521.8,2521.7,1.82689]
[1729725453046,0.06876181,2521.8,2521.7,1.82689]
[1729725453240,3.27656181,2521.8,2521.7,1.82689]
[1729725454045,3.67343181,2521.8,2521.7,1.82689]
[1729725454448,3.67343181,2521.8,2521.6,0.426]
[1729725454449,0.39689,2521.7,2521.6,0.8229]
[1729725454747,0.4273,2521.7,2521.6,2.2529]
[1729725455437,3.67344181,2521.8,2521.7,0.39689]
[1729725455637,5.96886471,2521.7,2521.2,1.43]
[1729725455841,1.82693,2521.5,2521.4,1.43]
[1729725456242,1.82693,2521.5,2521.4,1.82694]
[1729725456738,5.85121911,2521.5,2521.1,2.2201]
[1729725456941,1.43,2521.3,2521.2,1.82695]
[1729725458350,1.43,2521.4,2521.2,1.43]
[1729725458541,1.43,2521.4,2521.3,1.82695]
[1729725458743,5.59729743,2521.4,2521.3,1.82695]
[1729725458938,5.99423743,2521.4,2521.3,1.82695]
[1729725459144,5.59729743,2521.4,2521.3,1.82695]
[1729725459949,5.99423743,2521.4,2521.3,1.82695]
[1729725461340,4.16729743,2521.4,2521.3,1.82695]
[1729725462251,3.2078,2521.7,2521.6,0.39691]
[1729725462448,4.6378,2521.7,2521.6,1.82691]
[1729725462642,4.6378,2521.7,2521.6,0.39691]
[1729725463044,5.03469,2521.7,2521.6,0.39691]
[1729725464352,4.6378,2521.7,2521.5,0.8469]
[1729725464651,1.43,2521.6,2521.5,1.24382]
[1729725464847,5.0347,2521.7,2521.6,0.39691]
[1729725466158,3.6047,2521.7,2521.6,0.39691]
[1729725468654,0.3969,2521.7,2521.6,0.39691]
[1729725470149,1.43,2521.8,2521.6,1.43]
[1729725470350,0.39688,2521.8,2521.7,1.82688]
[1729725470947,5.4992,2521.9,2521.7,1.82688]
[1729725471144,5.89607,2521.9,2521.7,1.82688]
[1729725471355,5.89607,2521.9,2521.8,0.4508]
[1729725471552,5.96482976,2521.9,2521.8,0.4508]
[1729725471856,10.46405455,2521.9,2521.8,0.4508]
[1729725472058,10.46405451,2521.9,2521.8,0.4508]
[1729725475053,7.77578451,2521.9,2521.8,2.27767]
[1729725475261,0.39684,2522.1,2521.9,0.39685]
[1729725475454,0.39684,2522.1,2522.0,1.43]
[1729725476055,1.43,2522.1,2521.9,1.82685]
[1729725476251,0.39684,2522.0,2521.8,1.8808]
[1729725476455,1.82686,2521.9,2521.8,1.8808]
[1729725476660,3.10876,2521.9,2521.8,1.8808]
[1729725476958,7.27925272,2521.9,2521.8,1.8808]
[1729725477561,7.27925272,2521.9,2521.8,2.27767]
[1729725478762,7.27925272,2521.9,2521.8,1.8808]
[1729725479566,7.27925272,2521.9,2521.8,2.27767]
[1729725479958,7.27925272,2521.9,2521.8,1.8808]
[1729725480558,7.27925272,2521.9,2521.8,2.27767]
[1729725482869,7.27925272,2521.9,2521.8,1.8808]
[1729725483761,6.88239272,2521.9,2521.8,2.27767]
[1729725484067,7.27925272,2521.9,2521.8,2.27767]
[1729725485159,7.27925272,2521.9,2521.8,1.8808]
[1729725485355,0.39687,2521.8,2521.5,4.0547]
[1729725485566,6.88239272,2521.9,2521.6,0.4299]
[1729725485567,1.82689,2521.7,2521.6,0.4299]
[1729725485770,6.12018083,2521.7,2521.6,0.4299]
[1729725485961,4.69018083,2521.7,2521.6,0.82681]
[1729725486366,4.69018083,2521.7,2521.6,0.4299]
[1729725486965,4.69018083,2521.7,2521.5,1.43]
[1729725486966,0.39691,2521.6,2521.5,1.82692]
[1729725487158,0.39691,2521.6,2521.5,1.8599]
[1729725487361,0.80581,2521.6,2521.5,1.8599]
[1729725487559,0.39694,2521.4,2521.3,0.4278]
[1729725487765,1.23103,2521.5,2521.4,0.39694]
[1729725487968,2.66103,2521.5,2521.4,1.43]
[1729725488169,6.79945116,2521.5,2521.4,1.43]
[1729725488670,6.79945116,2521.5,2521.4,1.82694]
[1729725490468,6.79945116,2521.5,2521.4,1.43]
[1729725490766,6.79945116,2521.5,2521.4,1.82694]
[1729725491363,4.53535116,2521.5,2521.4,1.82694]
[1729725493472,4.13842116,2521.5,2521.4,1.82694]
[1729725493869,4.53534116,2521.5,2521.4,1.82694]
[1729725495179,1.82687,2521.9,2521.8,0.39686]
[1729725495374,1.49875983,2521.9,2521.8,0.39686]
[1729725495569,6.04186914,2521.9,2521.8,0.39686]
[1729725497078,6.04186914,2521.9,2521.6,0.8447]
[1729725497276,1.82689,2521.7,2521.6,0.4331]
[1729725497876,3.2078,2522.0,2521.6,1.8631]
[1729725498076,1.49876191,2521.9,2521.8,0.39686]
[1729725498279,6.31545527,2521.9,2521.8,0.39686]
[1729725498681,5.91859183,2521.9,2521.7,0.8244]
[1729725498874,0.4656298,2521.8,2521.7,1.22129]
[1729725499070,0.4656298,2521.8,2521.5,0.39691]
[1729725499071,0.39689,2521.7,2521.5,0.39691]
[1729725499277,1.43,2521.7,2521.5,0.39691]
[1729725499476,0.39691,2521.6,2521.5,0.39691]
[1729725500179,0.39691,2521.6,2521.5,0.82731]
[1729725500874,3.625,2522.0,2521.5,1.8604]
[1729725501074,3.625,2522.0,2521.7,1.82688]
[1729725501075,0.39687,2521.8,2521.7,1.82688]
[1729725501289,4.29861636,2521.8,2521.7,0.39688]
[1729725501479,0.06876288,2521.8,2521.7,0.82238]
[1729725501875,4.27243379,2521.8,2521.7,0.82238]
[1729725502485,1.82687,2521.9,2521.7,1.8555]
[1729725502675,0.06876068,2521.8,2521.7,2.25238]
[1729725503289,0.06876077,2521.8,2521.7,2.25238]
[1729725503484,0.46563077,2521.8,2521.7,2.25238]
[1729725503687,0.13752198,2521.8,2521.7,2.25238]
[1729725504084,0.06876079,2521.8,2521.7,2.25238]
[1729725504288,0.46563079,2521.8,2521.7,2.25238]
[1729725504888,0.06876079,2521.8,2521.7,2.25238]
[1729725505388,6.49234234,2521.8,2521.7,0.82239]
[1729725507988,9.70014234,2521.8,2521.7,0.82239]
[1729725508587,9.70014234,2521.8,2521.7,0.4255]
[1729725509583,9.30327234,2521.8,2521.2,4.2002]
[1729725509895,9.30327234,2521.8,2521.4,1.43]
[1729725509896,0.39691,2521.6,2521.4,1.43]
[1729725510094,0.39691,2521.6,2521.4,1.82692]
[1729725510396,0.82271,2521.6,2521.4,1.82692]
[1729725511199,0.82271,2521.6,2521.5,0.39692]
[1729725511601,0.39692,2521.5,2521.4,1.82693]
[1729725511799,0.8604,2521.6,2521.4,1.55413906]
[1729725511999,1.25731,2521.6,2521.5,0.39692]
[1729725512801,3.60468,2521.8,2521.5,1.43]
[1729725513008,3.2078,2521.8,2521.7,1.82689]
[1729725513308,9.37140909,2521.8,2521.7,0.39689]
[1729725513505,9.37140909,2521.8,2521.7,0.81949]
[1729725514102,8.97453909,2521.8,2521.7,0.81949]
[1729725514500,9.37140909,2521.8,2521.7,0.81949]
[1729725515703,9.37140909,2521.8,2521.7,0.4226]
[1729725515905,9.37140909,2521.8,2521.7,0.81949]
[1729725517210,9.37140909,2521.8,2521.7,0.4226]
[1729725518605,7.54453909,2521.8,2521.7,1.8526]
[1729725518815,4.33673909,2521.8,2521.7,2.66429]
[1729725519109,0.39687,2521.8,2521.7,1.23429]
[1729725519502,4.92040988,2521.8,2521.7,1.23429]
[1729725522113,4.52353988,2521.8,2521.7,2.66429]
[1729725522508,4.92040988,2521.8,2521.7,2.66429]
[1729725523009,4.52353988,2521.8,2521.7,2.66429]
[1729725523216,4.92040988,2521.8,2521.7,1.23429]
[1729725523407,0.39687,2521.8,2521.7,1.23429]
[1729725523607,4.76044831,2521.8,2521.7,1.23429]
[1729725523913,6.19044831,2521.8,2521.7,0.4226]
[1729725524112,7.03214831,2521.8,2521.7,0.4226]
[1729725526011,9.3684648,2529.5,2521.7,8.36933522]
[1729725526012,3.2078,2523.1,2521.7,8.36933522]
[1729725526313,3.20841831,2522.8,2522.7,0.39673]
[1729725526517,3.20841831,2523.0,2522.9,0.3967]
[1729725526706,3.20841831,2523.0,2522.9,1.95078401]
[1729725527310,1.43,2523.2,2522.9,7.29585759]
[1729725527511,1.857,2523.9,2522.9,1.3237]
[1729725527512,1.87571831,2523.0,2522.9,1.3237]
[1729725527713,1.87571831,2523.0,2522.9,2.357]
[1729725527913,1.87571831,2523.0,2522.9,2.7537]
[1729725528213,1.87571831,2523.0,2522.9,1.43]
[1729725528419,1.87571831,2523.0,2522.9,2.7537]
[1729725528907,1.87571831,2523.0,2522.9,5.9615]
[1729725529920,1.87571831,2523.0,2522.9,5.9605]
[1729725530119,3.2078,2523.9,2522.9,10.9578]
[1729725530310,6.2456432,2524.0,2523.9,0.39654]
[1729725530513,9.55136151,2524.0,2523.9,1.32254]
[1729725530817,8.12136151,2524.0,2523.8,0.926]
[1729725531011,1.87571831,2523.9,2523.8,2.75256]
[1729725532212,1.87571831,2523.9,2523.8,1.32256]
[1729725532513,1.87571831,2523.9,2523.7,0.39657]
[1729725532713,1.87571831,2523.8,2523.7,1.32257]
[1729725540023,3.2078,2524.3,2523.7,4.8884]
[1729725540218,1.87571831,2524.1,2524.0,0.39653]
[1729725540622,1.87571831,2524.1,2523.8,3.1]
[1729725540819,1.87571831,2524.1,2523.9,0.39653]
[1729725541121,0.39651,2524.2,2524.0,0.39652]
[1729725541521,6.36553875,2524.1,2524.0,0.39652]
[1729725541923,1.87571831,2524.1,2524.0,0.39652]
[1729725543428,2.27223831,2524.1,2523.9,1.32154]
[1729725543624,0.39651,2524.2,2524.0,0.39653]
[1729725543831,1.87571831,2524.1,2524.0,0.39653]
[1729725544534,2.27223831,2524.1,2523.9,1.73314]
[1729725544825,1.87571831,2524.0,2523.9,1.73314]
[1729725545628,2.27224831,2524.0,2523.9,1.73314]
[1729725545927,5.08351831,2524.0,2523.7,0.925]
[1729725546224,1.87571831,2523.8,2523.7,1.32158]
[1729725547725,1.87571831,2523.8,2523.7,0.39658]
[1729725547928,0.39652,2524.1,2524.0,0.39653]
[1729725548231,1.87571831,2523.9,2523.8,0.80806]
[1729725552328,1.87571831,2523.9,2523.8,2.23806]
[1729725552730,1.87571831,2523.9,2523.8,5.44586]
[1729725554030,1.28042202,2523.9,2523.8,5.44586]
[1729725555137,1.69502202,2523.9,2523.8,3.16306]
[1729725555333,2.09156202,2523.9,2523.8,3.16306]
[1729725555740,1.69502202,2523.9,2523.8,3.16306]
[1729725556530,2.6826,2524.2,2523.8,6.7289]
[1729725556730,1.28042202,2524.0,2523.9,1.82654]
[1729725558132,3.60428,2524.4,2524.3,0.39648]
[1729725558437,0.39649,2524.3,2524.2,1.82649]
[1729725558736,0.3965,2524.2,2524.1,1.8265]
[1729725558930,1.43,2524.3,2524.1,1.43]
[1729725559132,1.71602202,2524.2,2524.1,1.82651]
[1729725559333,3.54252202,2524.2,2524.1,1.43]
[1729725559541,3.58262202,2524.2,2524.0,0.93]
[1729725559837,5.63434144,2524.1,2523.9,1.43]
[1729725560140,1.28042202,2524.0,2523.9,2.75654]
[1729725560635,1.67695202,2524.0,2523.9,2.75654]
[1729725560830,1.28042202,2524.0,2523.9,2.75654]
[1729725561935,1.28042202,2524.0,2523.9,1.32654]
[1729725562335,1.28042202,2524.0,2523.9,2.75654]
[1729725562530,3.6078,2524.7,2524.6,0.39643]
[1729725562735,0.3992,2524.6,2524.5,0.39645]
[1729725562941,0.4,2524.7,2524.6,0.39643]
[1729725563432,0.4,2524.7,2524.6,4.35723]
[1729725563836,0.4,2524.7,2524.6,6.71723]
[1729725564233,0.4,2524.7,2524.6,8.37723]
[1729725564635,0.4,2524.7,2524.6,3.9608]
[1729725564836,1.68042202,2524.7,2524.6,0.39643]
[1729725565535,2.07684202,2524.7,2524.6,0.39643]
[1729725566043,1.68042202,2524.7,2524.6,0.39643]
[1729725567543,2.07684202,2524.7,2524.6,0.39643]
[1729725567738,1.68042202,2524.7,2524.6,0.39643]
[1729725568135,0.4,2524.7,2524.6,4.35723]
[1729725568340,0.4,2524.7,2524.6,4.79373]
[1729725570446,0.4,2524.7,2524.6,4.9176998]
[1729725570839,0.4,2524.7,2524.6,5.72373]
[1729725571246,0.4,2524.7,2524.6,5.84770649]
[1729725571747,0.4,2524.7,2524.6,9.05550649]
[1729725571748,1e-05,2524.7,2524.6,9.05550649]
[1729725572042,1e-05,2524.7,2524.6,9.25384058]
[1729725572243,1e-05,2524.7,2524.6,9.87365171]
[1729725572442,1e-05,2524.7,2524.6,9.87365478]
[1729725573152,1e-05,2524.7,2524.6,5.91285478]
[1729725573348,1e-05,2524.7,2524.6,9.87365478]
[1729725573646,1e-05,2524.7,2524.6,10.12157605]
[1729725574348,1.26652,2525.3,2525.2,0.39634]
[1729725574550,2.15062202,2525.3,2525.2,1.32634]
[1729725574843,2.54694202,2525.3,2525.2,1.32634]
[1729725575049,0.39636,2525.2,2525.1,1.32635]
[1729725575245,0.80616,2525.2,2525.1,1.32635]
[1729725575548,2.08658202,2525.2,2525.1,1.32635]
[1729725576050,4.19844,2525.8,2525.1,4.89]
[1729725576253,1.67674202,2525.4,2525.3,0.39632]
[1729725576438,0.39632,2525.3,2525.2,0.39633]
[1729725576644,0.39636,2525.1,2525.0,0.39636]
[1729725576952,1.67678202,2525.1,2525.0,0.39636]
[1729725577146,1.28042202,2525.1,2525.0,0.39636]
[1729725577549,1.28042202,2525.1,2525.0,0.82346]
[1729725577550,1.67678202,2525.1,2525.0,0.82346]
[1729725577748,1.28042202,2525.1,2525.0,0.82346]
[1729725577943,1.67678202,2525.1,2525.0,1.3561]
[1729725578143,1.67678202,2525.1,2525.0,0.39637]
[1729725578843,0.39639,2525.0,2524.9,0.39638]
[1729725579051,0.39639,2524.9,2524.8,1.22459]
[1729725579238,0.39639,2524.9,2524.8,2.15359]
[1729725579443,1.67681202,2524.9,2524.8,0.39639]
[1729725579747,0.4047,2525.3,2525.1,0.39634]
[1729725579947,2.09406202,2525.2,2525.1,0.39634]
[1729725580247,1.69772202,2525.2,2525.1,0.39634]
[1729725581054,1.28042202,2525.2,2525.1,0.39634]
[1729725583750,1.71802202,2525.2,2525.1,0.39634]
[1729725583951,1.71802202,2525.2,2525.0,0.991]
[1729725584146,0.83395,2525.2,2525.1,0.39636]
[1729725584352,0.83394,2525.2,2525.1,0.39636]
[1729725584553,1.71802202,2525.2,2525.1,0.39636]
[1729725585057,0.79373,2525.3,2525.2,0.39634]
[1729725585251,1.67782202,2525.3,2525.2,0.39634]
[1729725585755,2.07414202,2525.3,2525.2,0.39634]
[1729725586351,1.67782202,2525.3,2525.2,0.39634]
[1729725586558,2.07414202,2525.3,2525.2,0.39634]
[1729725586749,1.67782202,2525.3,2525.2,0.39634]
[1729725587052,2.07414202,2525.3,2525.2,0.39634]
[1729725587550,1.28042202,2525.3,2525.2,0.39634]
[1729725588149,1.2517,2525.6,2525.2,3.60414]
[1729725588354,1.67673202,2525.5,2525.4,0.3963]
[1729725588948,1.28042202,2525.5,2525.3,0.407]
[1729725589151,1.67673202,2525.4,2525.3,0.80331]
[1729725589547,1.67673202,2525.4,2525.3,0.39631]
[1729725590360,1.28042202,2525.4,2525.2,3.2078]
[1729725590559,1.67674202,2525.3,2525.2,3.60413]
[1729725590954,1.67674202,2525.3,2525.2,0.39633]
[1729725593762,2.24241,2525.6,2525.2,3.96]
[1729725594062,1.67674202,2525.4,2525.3,0.39631]
[1729725595765,0.39634,2525.3,2525.2,0.39632]
[1729725596364,0.39632,2525.4,2525.3,0.39631]
[1729725596566,1.67674202,2525.4,2525.3,0.39631]
[1729725598365,1.67674202,2525.4,2525.3,1.82631]
[1729725599069,1.67674202,2525.4,2525.3,2.81731]
[1729725600470,1.67673202,2525.4,2525.3,2.81731]
[1729725601671,1.28042202,2525.4,2525.3,2.81731]
[1729725602271,1.28042202,2525.4,2525.3,3.21971]
[1729725603273,1.28042202,2525.4,2525.3,2.8234]
[1729725603465,1.28042202,2525.4,2525.3,3.21972]
[1729725606570,1.67673202,2525.4,2525.3,1.38732]
[1729725606776,1.67673202,2525.4,2525.3,2.81732]
[1729725606973,1.28042202,2525.4,2525.2,1.43]
[1729725607179,1.67674202,2525.3,2525.2,1.43]
[1729725608078,1.67674202,2525.3,2525.2,1.82634]
[1729725608676,1.67674202,2525.3,2525.2,1.43]
[1729725609782,1.67674202,2525.3,2525.2,1.82634]
[1729725610384,1.28042202,2525.3,2525.2,1.82634]
[1729725610680,1.67674202,2525.3,2525.2,1.82634]
[1729725610883,1.67674202,2525.3,2525.2,1.43]
[1729725611183,1.67674202,2525.3,2525.2,1.82634]
[1729725613473,1.67674202,2525.3,2525.2,1.43]
[1729725613776,9.5847717,2525.3,2524.6,1.43]
[1729725613985,0.39643,2524.6,2524.5,1.36343]
[1729725614283,1.67685202,2524.6,2524.5,0.39643]
[1729725614481,2.53845202,2524.6,2524.5,0.39643]
[1729725615373,2.53845202,2524.6,2524.5,1.82643]
[1729725615374,1.28042202,2524.6,2524.5,1.82643]
[1729725615573,1.28042202,2524.6,2524.5,6.46423]
[1729725615779,1.28042202,2524.6,2524.5,5.15821222]
[1729725615980,1.28042202,2524.6,2524.5,3.72821222]
[1729725616180,1.28042202,2524.6,2524.5,5.03423]
[1729725616477,1.28042202,2524.6,2524.5,6.69423]
[1729725616887,1.67685202,2524.6,2524.5,0.39643]
[1729725617084,2.12632202,2524.6,2524.3,0.4256]
[1729725617395,1.28042202,2524.4,2524.3,3.91208]
[1729725618583,1.28042202,2524.4,2524.3,4.03606665]
[1729725619179,1.28042202,2524.4,2524.3,3.91208]
[1729725621187,1.28042202,2524.4,2524.3,4.88008]
[1729725621783,1.28042202,2524.4,2524.3,4.45448]
[1729725621978,1.67689202,2524.4,2524.3,4.45448]
[1729725622680,1.67689202,2524.4,2524.3,0.968]
[1729725622984,1.67689202,2524.4,2524.3,1.36448]
[1729725623184,1.28042202,2524.4,2523.6,3.2078]
[1729725623386,1.28042202,2524.1,2523.6,6.7286]
[1729725623591,1.28042202,2524.1,2523.6,7.6966]
[1729725623787,1.67694202,2524.1,2524.0,0.39653]
[1729725624289,1.28042202,2524.1,2524.0,0.39653]
[1729725624484,1.67693202,2524.1,2524.0,0.39653]
[1729725625186,1.28042202,2524.1,2524.0,0.39653]
[1729725625382,1.67693202,2524.1,2524.0,0.39653]
[1729725627386,1.67693202,2524.1,2524.0,0.80853]
[1729725627694,1.28042202,2524.1,2524.0,0.80853]
[1729725630981,1.67693202,2524.1,2524.0,0.80853]
[1729725631186,1.28042202,2524.1,2524.0,0.80853]
[1729725633084,0.39651,2524.1,2524.0,0.80853]
[1729725633291,1.67693202,2524.1,2524.0,0.80853]
[1729725636291,3.10693202,2524.1,2524.0,0.80853]
[1729725639395,2.71042202,2524.1,2524.0,0.80853]
[1729725639895,3.10693202,2524.1,2524.0,0.80853]
[1729725640294,2.71042202,2524.1,2524.0,0.80853]
[1729725640495,3.10693202,2524.1,2524.0,0.80853]
[1729725641295,1.67693202,2524.1,2524.0,0.80853]
[1729725641488,3.10693202,2524.1,2524.0,0.80853]
[1729725642096,2.71042202,2524.1,2524.0,0.80853]
[1729725642696,3.10693202,2524.1,2524.0,0.80853]
[1729725643699,2.71042202,2524.1,2524.0,0.80853]
[1729725646507,3.10693202,2524.1,2524.0,0.80853]
[1729725646707,2.71042202,2524.1,2523.5,3.2078]
[1729725646897,1.28042202,2524.0,2523.6,1.38659]
[1729725647205,3.10695202,2524.0,2523.9,0.39654]
[1729725650303,2.71042202,2524.0,2523.7,0.4058]
[1729725650510,1.25316,2523.9,2523.8,0.39655]
[1729725651000,2.53358202,2523.9,2523.8,0.39655]
[1729725651504,0.39658,2523.8,2523.7,0.39656]
[1729725651804,2.23058,2523.8,2523.7,0.39656]
[1729725652008,0.39658,2523.7,2523.6,3.60438]
[1729725652309,3.10700202,2523.7,2523.6,3.60438]
[1729725655514,2.71042202,2523.7,2523.5,0.3966]
[1729725655806,0.39662,2523.5,2523.4,0.39661]
[1729725656010,1.82662,2523.5,2523.4,0.39661]
[1729725656206,3.53144202,2523.5,2523.4,0.39661]
[1729725656808,3.13482202,2523.5,2523.2,0.99]
[1729725657009,0.4137,2523.4,2523.3,0.39664]
[1729725657199,1.8437,2523.4,2523.3,0.39664]
[1729725657509,3.12412202,2523.4,2523.3,0.39664]
[1729725659011,3.52074202,2523.4,2523.3,0.39664]
[1729725659307,3.12412202,2523.4,2523.3,0.39664]
[1729725659607,1.69412202,2523.4,2523.3,1.82664]
[1729725661111,3.12412202,2523.4,2523.3,0.39664]
[1729725663109,1.69412202,2523.4,2523.3,1.82664]
[1729725663305,1.28042202,2523.4,2523.3,1.82664]
[1729725664213,2.71042202,2523.4,2523.3,0.39664]
[1729725664410,3.13952202,2523.4,2523.3,0.39664]
[1729725664605,3.53614202,2523.4,2523.3,0.39664]
[1729725664814,3.13952202,2523.4,2523.3,0.39664]
[1729725665006,3.53614202,2523.4,2523.3,0.39664]
[1729725665210,0.39664,2523.3,2523.2,0.83704]
[1729725665517,3.55186202,2523.3,2523.2,0.83704]
[1729725665806,3.15522202,2523.3,2523.2,0.83704]
[1729725668513,1.72522202,2523.3,2523.2,2.26704]
[1729725669708,3.15522202,2523.3,2523.2,2.26704]
[1729725671411,2.71042202,2523.3,2523.2,2.26704]
[1729725671720,2.71042202,2523.3,2523.2,0.83704]
[1729725673719,2.71042202,2523.3,2523.2,2.26704]
[1729725674416,3.10706202,2523.3,2523.2,0.83704]
[1729725674808,2.71042202,2523.3,2523.2,0.83704]
[1729725677208,2.71042202,2523.3,2523.0,3.2078]
[1729725677407,0.99172,2523.0,2522.6,3.2078]
[1729725677611,2.71042202,2522.7,2522.6,0.39675]
[1729725677818,1.28042202,2522.7,2522.6,0.39675]
[1729725678115,2.71042202,2522.7,2522.6,3.60455]
[1729725678412,2.71042202,2522.7,2522.6,4.42735]
[1729725679212,2.71042202,2522.7,2522.6,4.00895]
[1729725679814,2.71042202,2522.7,2522.6,3.60455]
[1729725680015,3.10715202,2522.7,2522.6,3.60455]
[1729725680412,3.10715202,2522.7,2522.6,0.39675]
[1729725680612,2.71042202,2522.7,2522.6,0.39675]
[1729725680818,3.10715202,2522.7,2522.6,0.39675]
[1729725681120,0.39676,2522.6,2522.5,0.39675]
[1729725681417,0.39676,2522.6,2522.4,1.4074]
[1729725681418,3.56248202,2522.6,2522.4,1.4074]
[1729725681614,0.4553,2522.6,2522.5,0.39676]
[1729725681810,2.28205,2522.6,2522.5,0.39676]
[1729725682011,3.56247202,2522.6,2522.5,0.39676]
[1729725682717,2.71042202,2522.6,2522.5,0.39676]
[1729725683317,1.28042202,2522.6,2522.5,1.82676]
[1729725683622,0.4201,2522.9,2522.5,5.394]
[1729725683817,0.4549,2523.1,2523.0,0.39669]
[1729725684018,1.8849,2523.1,2523.0,0.39669]
[1729725684216,3.16532202,2523.1,2523.0,0.39669]
[1729725684519,3.58542202,2523.1,2523.0,0.39669]
[1729725686409,3.98209202,2523.1,2523.0,0.39669]
[1729725686628,3.58542202,2523.1,2523.0,0.39669]
[1729725687517,3.2078,2523.7,2523.0,8.601]
[1729725687719,3.60428,2524.4,2523.7,0.39658]
[1729725687922,1.43,2524.2,2524.0,1.43]
[1729725688121,1.28042202,2524.4,2524.1,1.43]
[1729725688324,1.43,2524.5,2524.3,1.82648]
[1729725688625,1.28042202,2524.5,2524.4,0.84817]
[1729725688812,1.28042202,2524.4,2524.3,0.964]
[1729725689010,2.71042202,2524.4,2524.3,0.964]
[1729725689217,3.10689202,2524.4,2524.3,0.964]
[1729725690420,1.67689202,2524.4,2524.2,0.39648]
[1729725690620,1.28042202,2524.3,2524.2,0.39648]
[1729725691322,1.67690202,2524.3,2524.2,0.39648]
[1729725691511,1.67690202,2524.3,2524.1,0.39651]
[1729725691512,0.3965,2524.2,2524.1,0.39651]
[1729725691717,1.28042202,2524.2,2524.1,0.39651]
[1729725692317,1.67692202,2524.2,2524.1,0.39651]
[1729725692524,1.28042202,2524.2,2524.1,0.39651]
[1729725693116,3.48649,2524.3,2524.1,0.39651]
[1729725693317,0.39652,2524.1,2524.0,0.39653]
[1729725693521,1.67694202,2524.1,2524.0,0.39653]
[1729725693720,1.67694202,2524.1,2523.9,1.35953]
[1729725693926,1.70722202,2524.0,2523.9,1.35953]
[1729725695830,1.70722202,2524.0,2523.9,0.39653]
[1729725696016,2.99215202,2524.0,2523.9,0.39653]
[1729725696220,2.59562202,2524.0,2523.7,0.39657]
[1729725696520,0.39656,2523.8,2523.7,0.39657]
[1729725696724,1.67698202,2523.8,2523.7,0.39657]
[1729725696919,1.28042202,2523.8,2523.7,0.39657]
[1729725697727,1.67698202,2523.8,2523.7,0.39657]
[1729725698436,1.28042202,2523.8,2523.7,0.39657]
[1729725698925,1.67698202,2523.8,2523.7,0.39657]
[1729725699827,1.28042202,2523.8,2523.7,0.39657]
[1729725702423,1.67698202,2523.8,2523.7,0.39657]
[1729725702824,1.28042202,2523.8,2523.7,0.39657]
[1729725703534,4.0881,2524.4,2524.3,0.39648]
[1729725704029,4.48822202,2524.4,2524.3,0.39648]
[1729725704423,1.28042202,2524.4,2524.3,0.39648]
[1729725707131,0.39641,2524.8,2524.7,0.39641]
[1729725707432,1.28042202,2524.8,2524.7,0.39641]
[1729725707837,3.2078,2525.1,2525.0,0.39637]
[1729725708446,4.48822202,2525.1,2525.0,0.39637]
[1729725708733,4.88458202,2525.1,2525.0,0.39637]
[1729725709130,4.48822202,2525.1,2524.5,4.08112]
[1729725709330,1.67681202,2524.9,2524.8,0.39639]
[1729725710935,1.28042202,2524.9,2524.8,0.39639]
[1729725711332,1.67681202,2524.9,2524.8,0.39639]
[1729725711532,1.28042202,2524.9,2524.8,0.39639]
[1729725711731,1.67681202,2524.9,2524.8,0.39639]
[1729725711936,1.28042202,2524.9,2524.8,0.39639]